[Event "Late-Titled-Tuesday-Blitz-February-13-2024"]
[Site "Chess.com"]
[Date "2024.02.13"]
[Round "11"]
[White "Flaccidmoves"]
[Black "titomagno_64"]
[Result "1-0"]
[WhiteElo "2449"]
[BlackElo "2253"]
[TimeControl "180+1"]
[EndTime "16:05:18 PST"]
[Termination "Flaccidmoves won by resignation"]

1. Nf3 {[%clk 0:03:00.9]} 1... Nf6 {[%clk 0:03:00]} 2. c4 {[%clk 0:03:01.1]}
2... g6 {[%clk 0:02:59.8]} 3. g3 {[%clk 0:02:58.7]} 3... Bg7 {[%clk 0:02:59.9]}
4. Bg2 {[%clk 0:02:59.4]} 4... O-O {[%clk 0:03:00.5]} 5. O-O {[%clk 0:03:00]}
5... c6 {[%clk 0:03:01.2]} 6. d4 {[%clk 0:02:55.4]} 6... d5 {[%clk 0:03:01.6]}
7. cxd5 {[%clk 0:02:56.1]} 7... cxd5 {[%clk 0:03:02.5]} 8. Ne5 {[%clk
0:02:56.4]} 8... Ne4 {[%clk 0:03:01.5]} 9. Nd2 {[%clk 0:02:46.3]} 9... Nc6
{[%clk 0:02:35.1]} 10. Nxc6 {[%clk 0:02:38.7]} 10... bxc6 {[%clk 0:02:34.3]} 11.
Nxe4 {[%clk 0:02:34.4]} 11... dxe4 {[%clk 0:02:35.2]} 12. Bxe4 {[%clk
0:02:10.3]} 12... Bh3 {[%clk 0:02:05.4]} 13. Re1 {[%clk 0:01:44.2]} 13... Bxd4
{[%clk 0:01:42.3]} 14. e3 {[%clk 0:01:38.9]} 14... Bf6 {[%clk 0:01:38.6]} 15.
Qxd8 {[%clk 0:01:34.9]} 15... Rfxd8 {[%clk 0:01:35.3]} 16. Bxc6 {[%clk
0:01:34.6]} 16... Rac8 {[%clk 0:01:33.9]} 17. Bg2 {[%clk 0:01:34]} 17... Bxg2
{[%clk 0:01:29.5]} 18. Kxg2 {[%clk 0:01:30.8]} 18... Rc2 {[%clk 0:01:30.4]} 19.
Rb1 {[%clk 0:01:19.9]} 19... Rb8 {[%clk 0:01:24.4]} 20. e4 {[%clk 0:01:15.1]}
20... Bd4 {[%clk 0:01:20.9]} 21. Be3 {[%clk 0:01:10.2]} 21... Bxe3 {[%clk
0:01:19.9]} 22. Rxe3 {[%clk 0:01:09.6]} 22... Rbxb2 {[%clk 0:01:18.8]} 23. Rxb2
{[%clk 0:01:10.2]} 23... Rxb2 {[%clk 0:01:19.5]} 24. Ra3 {[%clk 0:01:10.3]}
24... Rb7 {[%clk 0:01:16]} 25. Ra6 {[%clk 0:01:08.5]} 25... Kf8 {[%clk
0:01:12.1]} 26. h4 {[%clk 0:01:07]} 26... Ke8 {[%clk 0:01:12.8]} 27. Kf3 {[%clk
0:01:04.2]} 27... h6 {[%clk 0:01:10.6]} 28. h5 {[%clk 0:01:02.9]} 28... gxh5
{[%clk 0:01:10.5]} 29. Rxh6 {[%clk 0:01:00.7]} 29... Rb2 {[%clk 0:01:04.8]} 30.
Ra6 {[%clk 0:00:58.2]} 30... Rb7 {[%clk 0:01:05.2]} 31. Kf4 {[%clk 0:00:56.1]}
31... f6 {[%clk 0:01:00.2]} 32. Ra5 {[%clk 0:00:49.7]} 32... e5+ {[%clk
0:00:16.1]} 33. Kf5 {[%clk 0:00:39.4]} 33... Ke7 {[%clk 0:00:14.2]} 34. Ra6
{[%clk 0:00:35.9]} 34... Rb2 {[%clk 0:00:11.3]} 35. Rxa7+ {[%clk 0:00:35.5]}
35... Kd6 {[%clk 0:00:11.9]} 36. f4 {[%clk 0:00:29.4]} 36... exf4 {[%clk
0:00:10.9]} 37. gxf4 {[%clk 0:00:29.2]} 37... h4 {[%clk 0:00:10.5]} 38. Kxf6
{[%clk 0:00:24.8]} 38... h3 {[%clk 0:00:10.7]} 39. e5+ {[%clk 0:00:23.3]} 39...
Kd5 {[%clk 0:00:11.3]} 40. Rh7 {[%clk 0:00:19.1]} 40... h2 {[%clk 0:00:09.3]}
41. f5 {[%clk 0:00:18.6]} 41... Rxa2 {[%clk 0:00:09.3]} 42. e6 {[%clk
0:00:18.2]} 42... Re2 {[%clk 0:00:08.6]} 43. e7 {[%clk 0:00:18]} 43... Kd6
{[%clk 0:00:06.7]} 44. Rxh2 {[%clk 0:00:16.2]} 44... Rxe7 {[%clk 0:00:07]} 45.
Rd2+ {[%clk 0:00:16]} 1-0

[Event "Late-Titled-Tuesday-Blitz-February-13-2024"]
[Site "Chess.com"]
[Date "2024.02.13"]
[Round "11"]
[White "Rodalquilar"]
[Black "mightysmasher"]
[Result "0-1"]
[WhiteElo "2739"]
[BlackElo "2570"]
[TimeControl "180+1"]
[EndTime "16:05:20 PST"]
[Termination "mightysmasher won by checkmate"]

1. d4 {[%clk 0:03:00.9]} 1... d5 {[%clk 0:02:59.9]} 2. Nf3 {[%clk 0:03:01.2]}
2... Nf6 {[%clk 0:02:59.7]} 3. Bf4 {[%clk 0:03:01.7]} 3... e6 {[%clk 0:03:00.2]}
4. e3 {[%clk 0:03:02.2]} 4... Bd6 {[%clk 0:02:59.6]} 5. Nbd2 {[%clk 0:03:02.5]}
5... Bxf4 {[%clk 0:02:59.3]} 6. exf4 {[%clk 0:03:02.7]} 6... O-O {[%clk
0:02:59.8]} 7. c3 {[%clk 0:03:02.6]} 7... Ne4 {[%clk 0:02:59.7]} 8. Nxe4 {[%clk
0:03:00.2]} 8... dxe4 {[%clk 0:02:59.3]} 9. Nd2 {[%clk 0:03:00.7]} 9... f5
{[%clk 0:02:56.9]} 10. Nc4 {[%clk 0:03:01.2]} 10... b6 {[%clk 0:02:50.4]} 11.
Qb3 {[%clk 0:02:59.1]} 11... Bb7 {[%clk 0:02:49.8]} 12. Ne5 {[%clk 0:02:58.6]}
12... Qe7 {[%clk 0:02:45]} 13. Bc4 {[%clk 0:02:58.5]} 13... Re8 {[%clk
0:02:44.7]} 14. d5 {[%clk 0:02:58.8]} 14... Na6 {[%clk 0:02:30.6]} 15. dxe6
{[%clk 0:02:52.1]} 15... Nc5 {[%clk 0:02:29.7]} 16. Qa3 {[%clk 0:02:52.6]} 16...
Nxe6 {[%clk 0:01:56.5]} 17. Qxe7 {[%clk 0:02:52.2]} 17... Rxe7 {[%clk
0:01:56.5]} 18. O-O-O {[%clk 0:02:53.1]} 18... Kh8 {[%clk 0:01:28.3]} 19. g3
{[%clk 0:02:52.5]} 19... Nc5 {[%clk 0:01:22.5]} 20. b4 {[%clk 0:02:42.9]} 20...
Na4 {[%clk 0:01:08.7]} 21. Kc2 {[%clk 0:02:41.4]} 21... a6 {[%clk 0:00:53.2]}
22. Rhe1 {[%clk 0:02:27.9]} 22... g6 {[%clk 0:00:42.7]} 23. Rd4 {[%clk 0:02:22]}
23... c5 {[%clk 0:00:39.5]} 24. Rd6 {[%clk 0:02:21.5]} 24... cxb4 {[%clk
0:00:34.4]} 25. cxb4 {[%clk 0:02:21.5]} 25... Rc8 {[%clk 0:00:30]} 26. Red1
{[%clk 0:02:18.9]} 26... b5 {[%clk 0:00:20.5]} 27. Rd8+ {[%clk 0:02:19.3]} 27...
Kg7 {[%clk 0:00:20.5]} 28. Rxc8 {[%clk 0:02:18.8]} 28... Bxc8 {[%clk 0:00:21.4]}
29. Rd8 {[%clk 0:01:41.8]} 29... Rc7 {[%clk 0:00:20.6]} 30. Rg8+ {[%clk
0:01:42]} 30... Kh6 {[%clk 0:00:20]} 31. Nf7+ {[%clk 0:01:41.9]} 31... Kh5
{[%clk 0:00:19.8]} 32. Rg7 {[%clk 0:01:42.2]} 32... Rxc4+ {[%clk 0:00:18.7]} 33.
Kd2 {[%clk 0:01:42.7]} 33... Kg4 {[%clk 0:00:16.6]} 34. Ne5+ {[%clk 0:01:41.7]}
34... Kh3 {[%clk 0:00:16.2]} 35. Rxh7+ {[%clk 0:01:42.2]} 35... Kg2 {[%clk
0:00:16]} 36. Nxc4 {[%clk 0:01:09.8]} 36... bxc4 {[%clk 0:00:16.9]} 37. Ke2
{[%clk 0:01:10.4]} 37... c3 {[%clk 0:00:14.3]} 38. Rc7 {[%clk 0:01:10.5]} 38...
Be6 {[%clk 0:00:14.2]} 39. h4 {[%clk 0:01:05.2]} 39... Bxa2 {[%clk 0:00:13.4]}
40. Rc6 {[%clk 0:01:04.2]} 40... Bb3 {[%clk 0:00:12.6]} 41. Rxg6 {[%clk
0:01:00.7]} 41... Bc4+ {[%clk 0:00:08.6]} 42. Ke3 {[%clk 0:01:01.3]} 42... c2
{[%clk 0:00:08]} 43. Kd2 {[%clk 0:01:01.6]} 43... Bd3 {[%clk 0:00:07.7]} 44. Rc6
{[%clk 0:00:55.5]} 44... Kxf2 {[%clk 0:00:07.2]} 45. h5 {[%clk 0:00:56.2]} 45...
Nb2 {[%clk 0:00:01.7]} 46. h6 {[%clk 0:00:46.2]} 46... e3+ {[%clk 0:00:01.8]}
47. Kc1 {[%clk 0:00:46.7]} 47... e2 {[%clk 0:00:01.9]} 48. Re6 {[%clk
0:00:47.1]} 48... Be4 {[%clk 0:00:01.9]} 49. Kxb2 {[%clk 0:00:44.9]} 49... e1=Q
{[%clk 0:00:01.7]} 50. Rc6 {[%clk 0:00:45.8]} 50... Qxb4+ {[%clk 0:00:01.1]} 51.
Kc1 {[%clk 0:00:46.1]} 51... Qb1+ {[%clk 0:00:02]} 52. Kd2 {[%clk 0:00:46.1]}
52... c1=Q+ {[%clk 0:00:02.9]} 53. Rxc1 {[%clk 0:00:45.4]} 53... Qb2+ {[%clk
0:00:03.8]} 54. Rc2 {[%clk 0:00:45.4]} 54... Qxc2# {[%clk 0:00:04.7]} 0-1

[Event "Late-Titled-Tuesday-Blitz-February-13-2024"]
[Site "Chess.com"]
[Date "2024.02.13"]
[Round "11"]
[White "protectiago"]
[Black "PNEPaul"]
[Result "1-0"]
[WhiteElo "2101"]
[BlackElo "1896"]
[TimeControl "180+1"]
[EndTime "16:05:21 PST"]
[Termination "protectiago won by resignation"]

1. d4 {[%clk 0:02:59.3]} 1... Nf6 {[%clk 0:02:58.5]} 2. c4 {[%clk 0:02:57.1]}
2... c5 {[%clk 0:02:58.3]} 3. d5 {[%clk 0:02:56.8]} 3... Ne4 {[%clk 0:02:58.3]}
4. g3 {[%clk 0:02:54.7]} 4... Qa5+ {[%clk 0:02:57.5]} 5. Bd2 {[%clk 0:02:51.7]}
5... Nxd2 {[%clk 0:02:56.5]} 6. Qxd2 {[%clk 0:02:52]} 6... Qxd2+ {[%clk
0:02:56.3]} 7. Nxd2 {[%clk 0:02:52.4]} 7... d6 {[%clk 0:02:56.4]} 8. Bg2 {[%clk
0:02:52.8]} 8... g6 {[%clk 0:02:56.4]} 9. Ngf3 {[%clk 0:02:49.8]} 9... Bg7
{[%clk 0:02:56.4]} 10. Rb1 {[%clk 0:02:48.2]} 10... O-O {[%clk 0:02:50]} 11. O-O
{[%clk 0:02:48.6]} 11... Na6 {[%clk 0:02:47.4]} 12. e4 {[%clk 0:02:48.2]} 12...
Bd7 {[%clk 0:02:43.5]} 13. Rfe1 {[%clk 0:02:45.2]} 13... h6 {[%clk 0:02:38.4]}
14. a3 {[%clk 0:02:44.4]} 14... Nc7 {[%clk 0:02:30.7]} 15. e5 {[%clk 0:02:43.7]}
15... Rfe8 {[%clk 0:02:18.1]} 16. b4 {[%clk 0:02:41.4]} 16... Bf5 {[%clk
0:02:09.5]} 17. Rb3 {[%clk 0:02:40.4]} 17... Bc2 {[%clk 0:02:05.9]} 18. Rbe3
{[%clk 0:02:40.6]} 18... Bf5 {[%clk 0:01:55]} 19. h3 {[%clk 0:02:28.8]} 19... h5
{[%clk 0:01:53.6]} 20. bxc5 {[%clk 0:02:22.7]} 20... dxc5 {[%clk 0:01:52.8]} 21.
Rb3 {[%clk 0:02:18.9]} 21... Rab8 {[%clk 0:01:46.9]} 22. Nh4 {[%clk 0:02:03.3]}
22... Bd7 {[%clk 0:01:42.4]} 23. e6 {[%clk 0:01:53.5]} 23... fxe6 {[%clk
0:01:40.1]} 24. dxe6 {[%clk 0:01:42.3]} 24... Bxe6 {[%clk 0:01:19.6]} 25. Nxg6
{[%clk 0:01:36.9]} 25... b5 {[%clk 0:01:15]} 26. Rbe3 {[%clk 0:01:09.2]} 26...
Bxc4 {[%clk 0:01:00.1]} 27. Nxc4 {[%clk 0:01:07.5]} 27... bxc4 {[%clk 0:00:59]}
28. Nxe7+ {[%clk 0:01:01.2]} 28... Kh8 {[%clk 0:00:46.5]} 29. Ng6+ {[%clk
0:00:49.3]} 29... Kg8 {[%clk 0:00:41.2]} 30. Ne7+ {[%clk 0:00:24.8]} 30... Kh8
{[%clk 0:00:39.4]} 31. Bc6 {[%clk 0:00:25.1]} 31... Red8 {[%clk 0:00:31.2]} 32.
Ng6+ {[%clk 0:00:21.4]} 32... Kh7 {[%clk 0:00:25.4]} 33. Be4 {[%clk 0:00:21.1]}
33... Kg8 {[%clk 0:00:24.1]} 34. Ne7+ {[%clk 0:00:16.4]} 34... Kh8 {[%clk
0:00:22.8]} 35. Nc6 {[%clk 0:00:15]} 35... c3 {[%clk 0:00:16]} 36. Nxd8 {[%clk
0:00:11.4]} 36... Rxd8 {[%clk 0:00:14.7]} 37. Bc2 {[%clk 0:00:10.4]} 37... Nb5
{[%clk 0:00:10.3]} 38. Re8+ {[%clk 0:00:09.8]} 38... Rxe8 {[%clk 0:00:09.5]} 39.
Rxe8+ {[%clk 0:00:09.5]} 1-0

[Event "Late-Titled-Tuesday-Blitz-February-13-2024"]
[Site "Chess.com"]
[Date "2024.02.13"]
[Round "11"]
[White "Goryachkina"]
[Black "korkmaz16"]
[Result "1-0"]
[WhiteElo "2711"]
[BlackElo "2457"]
[TimeControl "180+1"]
[EndTime "16:05:22 PST"]
[Termination "Goryachkina won by resignation"]

1. e4 {[%clk 0:03:00]} 1... e6 {[%clk 0:02:57.7]} 2. d4 {[%clk 0:02:59.7]} 2...
d5 {[%clk 0:02:57.6]} 3. Nd2 {[%clk 0:03:00.1]} 3... Nf6 {[%clk 0:02:57]} 4. e5
{[%clk 0:02:59.6]} 4... Nfd7 {[%clk 0:02:57]} 5. Bd3 {[%clk 0:02:59.6]} 5... c5
{[%clk 0:02:57.2]} 6. c3 {[%clk 0:03:00.1]} 6... Nc6 {[%clk 0:02:57.7]} 7. Ne2
{[%clk 0:03:00.3]} 7... cxd4 {[%clk 0:02:57.8]} 8. cxd4 {[%clk 0:03:00.3]} 8...
f6 {[%clk 0:02:58.3]} 9. exf6 {[%clk 0:03:00.4]} 9... Nxf6 {[%clk 0:02:57]} 10.
Nf3 {[%clk 0:02:59.4]} 10... Bd6 {[%clk 0:02:57.3]} 11. O-O {[%clk 0:02:58.7]}
11... O-O {[%clk 0:02:57.3]} 12. Bg5 {[%clk 0:02:55.9]} 12... Qc7 {[%clk
0:02:55.2]} 13. Bh4 {[%clk 0:02:37.5]} 13... Bd7 {[%clk 0:02:52.2]} 14. Bg3
{[%clk 0:02:37.2]} 14... Rae8 {[%clk 0:02:50]} 15. Rc1 {[%clk 0:02:36.6]} 15...
a6 {[%clk 0:02:49.2]} 16. a3 {[%clk 0:02:30.8]} 16... Qb8 {[%clk 0:02:47.8]} 17.
Re1 {[%clk 0:02:24.4]} 17... Bxg3 {[%clk 0:02:44.4]} 18. Nxg3 {[%clk 0:02:21.3]}
18... e5 {[%clk 0:02:44]} 19. dxe5 {[%clk 0:02:20.4]} 19... Nxe5 {[%clk
0:02:44.2]} 20. Nxe5 {[%clk 0:02:18.2]} 20... Rxe5 {[%clk 0:02:44.2]} 21. h3
{[%clk 0:02:14.8]} 21... Rfe8 {[%clk 0:02:26]} 22. Rxe5 {[%clk 0:02:09]} 22...
Qxe5 {[%clk 0:02:25.8]} 23. Qd2 {[%clk 0:02:08.9]} 23... Bc6 {[%clk 0:02:22.8]}
24. Bf1 {[%clk 0:02:03.4]} 24... Ne4 {[%clk 0:02:13.8]} 25. Nxe4 {[%clk
0:02:03.1]} 25... dxe4 {[%clk 0:02:14.1]} 26. Re1 {[%clk 0:01:57.4]} 26... h6
{[%clk 0:02:06.1]} 27. b4 {[%clk 0:01:56.8]} 27... Qf6 {[%clk 0:02:02.8]} 28.
Qe3 {[%clk 0:01:56.3]} 28... Rf8 {[%clk 0:01:58.9]} 29. Rc1 {[%clk 0:01:52.4]}
29... Qf4 {[%clk 0:01:54.5]} 30. Qxf4 {[%clk 0:01:49.5]} 30... Rxf4 {[%clk
0:01:53.9]} 31. Bxa6 {[%clk 0:01:48.6]} 31... Rf6 {[%clk 0:01:31]} 32. Bc4+
{[%clk 0:01:40.1]} 32... Kf8 {[%clk 0:01:30.7]} 33. b5 {[%clk 0:01:30.2]} 33...
Bd7 {[%clk 0:01:30.7]} 34. a4 {[%clk 0:01:25.7]} 34... Rd6 {[%clk 0:01:27.1]}
35. a5 {[%clk 0:01:23.7]} 35... Ke7 {[%clk 0:01:22.1]} 36. Bf1 {[%clk 0:01:07]}
36... Rd4 {[%clk 0:01:19.3]} 37. a6 {[%clk 0:00:45.8]} 37... bxa6 {[%clk
0:01:19.2]} 38. bxa6 {[%clk 0:00:46.3]} 38... Ra4 {[%clk 0:01:19.8]} 39. Kh2
{[%clk 0:00:42.8]} 39... Kd6 {[%clk 0:01:16.5]} 40. Kg3 {[%clk 0:00:38.4]} 40...
Ke5 {[%clk 0:01:06.4]} 41. Rc7 {[%clk 0:00:32.6]} 41... Ra3+ {[%clk 0:01:05.4]}
42. Kh2 {[%clk 0:00:32.8]} 42... Kd6 {[%clk 0:01:05.9]} 43. Rb7 {[%clk
0:00:33.1]} 43... g5 {[%clk 0:01:00.6]} 44. Rb6+ {[%clk 0:00:32.6]} 44... Ke5
{[%clk 0:00:54.9]} 45. Rxh6 {[%clk 0:00:32.3]} 45... Ra2 {[%clk 0:00:53.6]} 46.
Kg3 {[%clk 0:00:23.1]} 46... Ra3+ {[%clk 0:00:52]} 47. f3 {[%clk 0:00:19.1]}
47... e3 {[%clk 0:00:51.9]} 48. Rb6 {[%clk 0:00:18.6]} 48... Ra2 {[%clk
0:00:48.3]} 49. Bc4 {[%clk 0:00:17.8]} 49... e2 {[%clk 0:00:45.7]} 50. Bxe2
{[%clk 0:00:13.2]} 50... Rxe2 {[%clk 0:00:45.4]} 51. Rb7 {[%clk 0:00:11.6]}
51... Bc6 {[%clk 0:00:44.4]} 52. Re7+ {[%clk 0:00:11]} 52... Kf5 {[%clk
0:00:41.7]} 53. Rxe2 {[%clk 0:00:11.9]} 53... Bb5 {[%clk 0:00:41.2]} 54. a7
{[%clk 0:00:11.9]} 54... Ba6 {[%clk 0:00:40.1]} 55. a8=Q {[%clk 0:00:12.2]} 1-0

[Event "Late-Titled-Tuesday-Blitz-February-13-2024"]
[Site "Chess.com"]
[Date "2024.02.13"]
[Round "11"]
[White "Viktor_Poddubnyi"]
[Black "Cosi43"]
[Result "1/2-1/2"]
[WhiteElo "2282"]
[BlackElo "2562"]
[TimeControl "180+1"]
[EndTime "16:05:23 PST"]
[Termination "Game drawn by repetition"]

1. e4 {[%clk 0:02:59.8]} 1... c5 {[%clk 0:02:59.9]} 2. Nf3 {[%clk 0:02:59.6]}
2... e6 {[%clk 0:03:00.5]} 3. g3 {[%clk 0:02:59]} 3... b6 {[%clk 0:02:57.4]} 4.
Bg2 {[%clk 0:02:58.2]} 4... Bb7 {[%clk 0:02:58.1]} 5. d3 {[%clk 0:02:57.5]} 5...
d6 {[%clk 0:02:58.4]} 6. O-O {[%clk 0:02:57.5]} 6... Nd7 {[%clk 0:02:59]} 7. c3
{[%clk 0:02:55.5]} 7... Ngf6 {[%clk 0:02:59.6]} 8. Re1 {[%clk 0:02:55]} 8... Be7
{[%clk 0:02:59.7]} 9. Nbd2 {[%clk 0:02:53.5]} 9... Rc8 {[%clk 0:02:53.7]} 10. d4
{[%clk 0:02:51.8]} 10... cxd4 {[%clk 0:02:53.9]} 11. cxd4 {[%clk 0:02:52.7]}
11... h5 {[%clk 0:02:48.3]} 12. e5 {[%clk 0:02:34.3]} 12... dxe5 {[%clk
0:02:45.7]} 13. dxe5 {[%clk 0:02:35.2]} 13... Ng4 {[%clk 0:02:45.7]} 14. h3
{[%clk 0:02:20.7]} 14... Nxf2 {[%clk 0:02:27]} 15. Kxf2 {[%clk 0:02:21.6]} 15...
Bc5+ {[%clk 0:02:27.1]} 16. Re3 {[%clk 0:02:22]} 16... Bxe3+ {[%clk 0:02:14.5]}
17. Kxe3 {[%clk 0:02:20.8]} 17... Nxe5 {[%clk 0:02:13.7]} 18. Nxe5 {[%clk
0:01:42.2]} 18... Bxg2 {[%clk 0:02:12]} 19. Qa4+ {[%clk 0:01:40.2]} 19... Kf8
{[%clk 0:02:03]} 20. Ndf3 {[%clk 0:01:30.3]} 20... Bxh3 {[%clk 0:01:45.1]} 21.
Bd2 {[%clk 0:01:12.9]} 21... Kg8 {[%clk 0:01:31.8]} 22. Bc3 {[%clk 0:01:05.3]}
22... Rh6 {[%clk 0:01:18]} 23. Rd1 {[%clk 0:00:57]} 23... Qc7 {[%clk 0:00:59.8]}
24. Rd7 {[%clk 0:00:20.1]} 24... Qc5+ {[%clk 0:01:00]} 25. Qd4 {[%clk
0:00:20.4]} 25... Qxd4+ {[%clk 0:00:48.4]} 26. Nxd4 {[%clk 0:00:20.3]} 26... f6
{[%clk 0:00:48.1]} 27. Nec6 {[%clk 0:00:12.9]} 27... Kh8 {[%clk 0:00:43.7]} 28.
Nxa7 {[%clk 0:00:10.1]} 28... Rc5 {[%clk 0:00:39.1]} 29. Nb3 {[%clk 0:00:06.9]}
29... Rd5 {[%clk 0:00:36.5]} 30. Rxd5 {[%clk 0:00:06.1]} 30... exd5 {[%clk
0:00:37.4]} 31. Bd4 {[%clk 0:00:06.4]} 31... f5 {[%clk 0:00:36.5]} 32. Nc8
{[%clk 0:00:05]} 32... Rg6 {[%clk 0:00:36.9]} 33. Kf2 {[%clk 0:00:03.9]} 33...
b5 {[%clk 0:00:36.4]} 34. Ne7 {[%clk 0:00:03.2]} 34... Rd6 {[%clk 0:00:30]} 35.
Nc5 {[%clk 0:00:02.6]} 35... Kh7 {[%clk 0:00:27.2]} 36. Be5 {[%clk 0:00:02.4]}
36... Rd8 {[%clk 0:00:21]} 37. Ne6 {[%clk 0:00:02.8]} 37... Re8 {[%clk
0:00:20.1]} 38. Ng5+ {[%clk 0:00:03.2]} 38... Kh6 {[%clk 0:00:18.7]} 39. Nf7+
{[%clk 0:00:03.6]} 39... Kh7 {[%clk 0:00:18.9]} 40. Ng5+ {[%clk 0:00:03.7]}
40... Kh6 {[%clk 0:00:18.5]} 41. Nf7+ {[%clk 0:00:03.9]} 41... Kh7 {[%clk
0:00:18.6]} 42. Ng5+ {[%clk 0:00:03.9]} 1/2-1/2

[Event "Late-Titled-Tuesday-Blitz-February-13-2024"]
[Site "Chess.com"]
[Date "2024.02.13"]
[Round "11"]
[White "Grossboss19"]
[Black "cukricek"]
[Result "0-1"]
[WhiteElo "2600"]
[BlackElo "2477"]
[TimeControl "180+1"]
[EndTime "16:05:26 PST"]
[Termination "cukricek won by checkmate"]

1. Nf3 {[%clk 0:03:00.9]} 1... Nf6 {[%clk 0:02:59.2]} 2. d4 {[%clk 0:03:00.7]}
2... g6 {[%clk 0:02:59.2]} 3. e3 {[%clk 0:02:59.9]} 3... Bg7 {[%clk 0:02:59.6]}
4. Bd3 {[%clk 0:02:55]} 4... O-O {[%clk 0:02:59.5]} 5. O-O {[%clk 0:02:55.6]}
5... d6 {[%clk 0:02:59.6]} 6. b3 {[%clk 0:02:55.5]} 6... Nc6 {[%clk 0:02:59.3]}
7. Bb2 {[%clk 0:02:55.9]} 7... e5 {[%clk 0:02:58.7]} 8. dxe5 {[%clk 0:02:54.6]}
8... Ng4 {[%clk 0:02:59]} 9. Nbd2 {[%clk 0:02:40.6]} 9... Ngxe5 {[%clk
0:02:55.8]} 10. Nxe5 {[%clk 0:02:40.6]} 10... Nxe5 {[%clk 0:02:48.5]} 11. Rb1
{[%clk 0:02:40]} 11... Nxd3 {[%clk 0:02:42.9]} 12. cxd3 {[%clk 0:02:40.9]} 12...
Bf5 {[%clk 0:02:34.5]} 13. Bxg7 {[%clk 0:02:36.5]} 13... Kxg7 {[%clk 0:02:27.9]}
14. Qc1 {[%clk 0:02:36.5]} 14... c6 {[%clk 0:02:18]} 15. Qc3+ {[%clk 0:02:31.1]}
15... Qf6 {[%clk 0:02:17.2]} 16. Rbc1 {[%clk 0:02:30.2]} 16... d5 {[%clk
0:02:10.8]} 17. Qxf6+ {[%clk 0:02:26.8]} 17... Kxf6 {[%clk 0:02:11.7]} 18. d4
{[%clk 0:02:27.4]} 18... Rfe8 {[%clk 0:02:03.9]} 19. Rc3 {[%clk 0:02:27]} 19...
a5 {[%clk 0:02:01.3]} 20. a3 {[%clk 0:02:23.4]} 20... Bd7 {[%clk 0:02:00]} 21.
Rb1 {[%clk 0:02:21.2]} 21... Kg7 {[%clk 0:01:48.5]} 22. h3 {[%clk 0:02:19.6]}
22... f5 {[%clk 0:01:48.8]} 23. Nf3 {[%clk 0:02:17.2]} 23... f4 {[%clk
0:01:40.4]} 24. exf4 {[%clk 0:02:16.1]} 24... Re4 {[%clk 0:01:40.2]} 25. g3
{[%clk 0:02:13.8]} 25... Rae8 {[%clk 0:01:20.9]} 26. Rd1 {[%clk 0:02:02.8]}
26... Bxh3 {[%clk 0:01:16.8]} 27. Ng5 {[%clk 0:02:01.8]} 27... Re1+ {[%clk
0:01:10.5]} 28. Rxe1 {[%clk 0:02:00.4]} 28... Rxe1+ {[%clk 0:01:11.4]} 29. Kh2
{[%clk 0:02:01.1]} 29... Bf5 {[%clk 0:01:07.3]} 30. Nf3 {[%clk 0:01:54.2]} 30...
Ra1 {[%clk 0:01:03.7]} 31. a4 {[%clk 0:01:45.5]} 31... Be4 {[%clk 0:01:02.5]}
32. g4 {[%clk 0:01:43.9]} 32... Bxf3 {[%clk 0:00:51.6]} 33. Rxf3 {[%clk
0:01:43.5]} 33... Rd1 {[%clk 0:00:52.2]} 34. Re3 {[%clk 0:01:43.5]} 34... Kf6
{[%clk 0:00:48.1]} 35. Kg3 {[%clk 0:01:42.2]} 35... Rxd4 {[%clk 0:00:47.2]} 36.
f3 {[%clk 0:01:42.7]} 36... Rb4 {[%clk 0:00:42]} 37. Rc3 {[%clk 0:01:42.5]}
37... d4 {[%clk 0:00:33.6]} 38. Rd3 {[%clk 0:01:42]} 38... c5 {[%clk 0:00:32]}
39. Kf2 {[%clk 0:01:40.8]} 39... Ke6 {[%clk 0:00:32.3]} 40. Kg3 {[%clk
0:01:39.7]} 40... Kd5 {[%clk 0:00:32.7]} 41. f5 {[%clk 0:01:39.8]} 41... gxf5
{[%clk 0:00:32.3]} 42. gxf5 {[%clk 0:01:40.7]} 42... Rb6 {[%clk 0:00:31.6]} 43.
Kf4 {[%clk 0:01:39.9]} 43... Rf6 {[%clk 0:00:30.1]} 44. Rd1 {[%clk 0:01:37.8]}
44... c4 {[%clk 0:00:20.7]} 45. bxc4+ {[%clk 0:01:37]} 45... Kxc4 {[%clk
0:00:21.6]} 46. Rb1 {[%clk 0:01:29]} 46... d3 {[%clk 0:00:14.5]} 47. Rxb7 {[%clk
0:01:28.2]} 47... Rd6 {[%clk 0:00:05.7]} 48. Rb1 {[%clk 0:01:27.3]} 48... d2
{[%clk 0:00:05.4]} 49. Rd1 {[%clk 0:01:26.1]} 49... Kd3 {[%clk 0:00:06]} 50. Ke5
{[%clk 0:01:25.7]} 50... Rd8 {[%clk 0:00:06.2]} 51. f6 {[%clk 0:01:21.9]} 51...
h5 {[%clk 0:00:04]} 52. f7 {[%clk 0:01:20.4]} 52... h4 {[%clk 0:00:04.3]} 53.
Kf6 {[%clk 0:01:20]} 53... Ke2 {[%clk 0:00:03.6]} 54. Rh1 {[%clk 0:01:19.6]}
54... d1=Q {[%clk 0:00:03.2]} 55. Rxd1 {[%clk 0:01:20.2]} 55... Kxd1 {[%clk
0:00:03.9]} 56. Ke7 {[%clk 0:01:21.1]} 56... Ra8 {[%clk 0:00:03.3]} 57. f4
{[%clk 0:01:20.5]} 57... h3 {[%clk 0:00:03.2]} 58. f5 {[%clk 0:01:19.7]} 58...
h2 {[%clk 0:00:03.8]} 59. f8=Q {[%clk 0:01:19.7]} 59... Rxf8 {[%clk 0:00:02.9]}
60. Kxf8 {[%clk 0:01:20.6]} 60... h1=Q {[%clk 0:00:03.2]} 61. f6 {[%clk
0:01:21.5]} 61... Qc6 {[%clk 0:00:02.1]} 62. f7 {[%clk 0:01:21.6]} 62... Qxa4
{[%clk 0:00:02.7]} 63. Kg7 {[%clk 0:01:20.2]} 63... Qg4+ {[%clk 0:00:02.9]} 64.
Kf6 {[%clk 0:01:19.8]} 64... Qf4+ {[%clk 0:00:03.1]} 65. Ke7 {[%clk 0:01:20.2]}
65... Qxf7+ {[%clk 0:00:03]} 66. Kxf7 {[%clk 0:01:20.3]} 66... a4 {[%clk
0:00:03.9]} 67. Ke6 {[%clk 0:01:21.1]} 67... a3 {[%clk 0:00:04.8]} 68. Kd5
{[%clk 0:01:22]} 68... a2 {[%clk 0:00:05.7]} 69. Kc4 {[%clk 0:01:22.9]} 69...
a1=Q {[%clk 0:00:06.6]} 70. Kd3 {[%clk 0:01:23.3]} 70... Qa8 {[%clk 0:00:05.5]}
71. Ke3 {[%clk 0:01:23.3]} 71... Kc2 {[%clk 0:00:05.9]} 72. Kf4 {[%clk
0:01:24.2]} 72... Kd3 {[%clk 0:00:06.4]} 73. Ke5 {[%clk 0:01:25.1]} 73... Kc4
{[%clk 0:00:06.3]} 74. Kf6 {[%clk 0:01:26]} 74... Kd5 {[%clk 0:00:06.8]} 75. Kg7
{[%clk 0:01:26.9]} 75... Qc6 {[%clk 0:00:06.7]} 76. Kg8 {[%clk 0:01:27.8]} 76...
Qc7 {[%clk 0:00:06.9]} 77. Kh8 {[%clk 0:01:28.7]} 77... Ke6 {[%clk 0:00:07.4]}
78. Kg8 {[%clk 0:01:28.1]} 78... Kf6 {[%clk 0:00:08]} 79. Kh8 {[%clk 0:01:28.6]}
79... Qg7# {[%clk 0:00:08.1]} 0-1